[Event "*** Titled Tuesday 3|2 Blitz (Early)"]
[Site "Chess.com"]
[Date "2017.01.03"]
[Round "9"]
[White "Feegus"]
[Black "MrReinberg"]
[Result "1-0"]
[WhiteElo "2326"]
[BlackElo "2211"]
[TimeControl "180+2"]
[EndTime "12:59:10 PST"]
[Termination "Feegus won on time"]

1. Nf3 {[%clk 0:02:58.7]} 1... Nf6 {[%clk 0:02:56.4]} 2. g3 {[%clk 0:02:57.5]}
2... c5 {[%clk 0:02:56]} 3. Bg2 {[%clk 0:02:58.1]} 3... Nc6 {[%clk 0:02:56.9]}
4. O-O {[%clk 0:02:58.8]} 4... e5 {[%clk 0:02:55.5]} 5. e4 {[%clk 0:02:59.5]}
5... Nxe4 {[%clk 0:02:49.5]} 6. Nxe5 {[%clk 0:03:00.4]} 6... Nxe5 {[%clk
0:02:46.9]} 7. Bxe4 {[%clk 0:03:01.2]} 7... Be7 {[%clk 0:02:42.2]} 8. d4 {[%clk
0:02:59.1]} 8... cxd4 {[%clk 0:02:37.1]} 9. Qxd4 {[%clk 0:02:59.7]} 9... Bf6
{[%clk 0:02:38]} 10. Qb4 {[%clk 0:02:41.8]} 10... d6 {[%clk 0:02:33.2]} 11. Rd1
{[%clk 0:02:24.9]} 11... Be7 {[%clk 0:02:04.7]} 12. Nc3 {[%clk 0:02:14.1]} 12...
Bg4 {[%clk 0:01:56.1]} 13. Re1 {[%clk 0:01:38.3]} 13... O-O {[%clk 0:01:54.5]}
14. Bf4 {[%clk 0:01:35.5]} 14... d5 {[%clk 0:01:34.3]} 15. Qxb7 {[%clk
0:01:29.2]} 15... dxe4 {[%clk 0:01:34.9]} 16. Bxe5 {[%clk 0:01:27.7]} 16... Bf3
{[%clk 0:01:33.8]} 17. Nxe4 {[%clk 0:01:28.1]} 17... Rc8 {[%clk 0:01:02.2]} 18.
c3 {[%clk 0:01:25.8]} 18... Rc4 {[%clk 0:00:52.6]} 19. Nf6+ {[%clk 0:01:25.4]}
19... gxf6 {[%clk 0:00:49.7]} 20. Qxf3 {[%clk 0:01:21.9]} 20... fxe5 {[%clk
0:00:50.5]} 21. Rxe5 {[%clk 0:01:23.8]} 21... Bf6 {[%clk 0:00:47.8]} 22. Rd5
{[%clk 0:01:22.7]} 22... Qe7 {[%clk 0:00:42.9]} 23. Rad1 {[%clk 0:01:21.8]}
23... Bg7 {[%clk 0:00:40.2]} 24. Rd7 {[%clk 0:01:21.3]} 24... Qe4 {[%clk
0:00:38.6]} 25. Qxe4 {[%clk 0:01:09.3]} 25... Rxe4 {[%clk 0:00:40.5]} 26. Rxa7
{[%clk 0:01:10.9]} 26... Re2 {[%clk 0:00:41.6]} 27. Rb7 {[%clk 0:01:09.8]} 27...
Ra8 {[%clk 0:00:34.6]} 28. Rdd7 {[%clk 0:01:09.7]} 28... Rxa2 {[%clk 0:00:30.1]}
29. Rd8+ {[%clk 0:00:52.4]} 29... Bf8 {[%clk 0:00:30.2]} 30. Rbb8 {[%clk
0:00:54.3]} 30... Raxb2 {[%clk 0:00:31.2]} 31. Rxf8+ {[%clk 0:00:54.9]} 31...
Kg7 {[%clk 0:00:32.5]} 32. Rxb2 {[%clk 0:00:56.7]} 32... Rxb2 {[%clk 0:00:32.9]}
33. Rc8 {[%clk 0:00:57.1]} 33... Rc2 {[%clk 0:00:32.9]} 34. Rc6 {[%clk
0:00:56.3]} 34... h5 {[%clk 0:00:32.7]} 35. h4 {[%clk 0:00:56.8]} 35... f6
{[%clk 0:00:33.3]} 36. Kg2 {[%clk 0:00:57.6]} 36... Kg6 {[%clk 0:00:34.4]} 37.
Rc5 {[%clk 0:00:56.1]} 37... Rc1 {[%clk 0:00:29.5]} 38. Kf3 {[%clk 0:00:56.8]}
38... Rc2 {[%clk 0:00:30.3]} 39. Ke3 {[%clk 0:00:57.6]} 39... Kh6 {[%clk
0:00:28.9]} 40. f3 {[%clk 0:00:58.2]} 40... Kg6 {[%clk 0:00:29.6]} 41. Kf4
{[%clk 0:00:59.1]} 41... Rh2 {[%clk 0:00:24.7]} 42. Rc7 {[%clk 0:00:54.4]} 42...
Rh1 {[%clk 0:00:21.7]} 43. c4 {[%clk 0:00:49.1]} 43... Rh2 {[%clk 0:00:20.5]}
44. Ke4 {[%clk 0:00:42.9]} 44... Rg2 {[%clk 0:00:20.6]} 45. Kf4 {[%clk
0:00:43.6]} 45... Rh2 {[%clk 0:00:20.9]} 46. Rc8 {[%clk 0:00:44.2]} 46... Rh1
{[%clk 0:00:16.2]} 47. Ke4 {[%clk 0:00:34.8]} 47... Rg1 {[%clk 0:00:16]} 48. c5
{[%clk 0:00:32.7]} 48... Kf7 {[%clk 0:00:15.4]} 49. Kf4 {[%clk 0:00:32.4]} 49...
Kg6 {[%clk 0:00:13.7]} 50. c6 {[%clk 0:00:33.2]} 50... Rc1 {[%clk 0:00:14.9]}
51. Ke4 {[%clk 0:00:29.3]} 51... Kf7 {[%clk 0:00:07.6]} 52. c7 {[%clk 0:00:30]}
52... Kg7 {[%clk 0:00:06]} 53. Kf5 {[%clk 0:00:29.6]} 53... Rc6 {[%clk
0:00:04.4]} 54. g4 {[%clk 0:00:29.5]} 54... hxg4 {[%clk 0:00:02.4]} 55. fxg4
{[%clk 0:00:30.5]} 55... Kh7 {[%clk 0:00:02.5]} 56. h5 {[%clk 0:00:27]} 56...
Kg7 {[%clk 0:00:02.7]} 57. h6+ {[%clk 0:00:27.3]} 57... Kh7 {[%clk 0:00:02.5]}
58. Ke4 {[%clk 0:00:26.1]} 1-0

[Event "*** Titled Tuesday 3|2 Blitz (Early)"]
[Site "Chess.com"]
[Date "2017.01.03"]
[Round "9"]
[White "Th3ChessViking"]
[Black "ZhuChenChess"]
[Result "1-0"]
[WhiteElo "2420"]
[BlackElo "2328"]
[TimeControl "180+2"]
[EndTime "12:59:15 PST"]
[Termination "Th3ChessViking won by resignation"]

1. c4 {[%clk 0:03:02]} 1... e5 {[%clk 0:02:59.9]} 2. g3 {[%clk 0:03:02.3]} 2...
Nf6 {[%clk 0:02:58.8]} 3. Bg2 {[%clk 0:03:03.4]} 3... c6 {[%clk 0:02:59.2]} 4.
d4 {[%clk 0:02:57.4]} 4... exd4 {[%clk 0:02:36.2]} 5. Qxd4 {[%clk 0:02:59.3]}
5... d5 {[%clk 0:02:27.7]} 6. Nf3 {[%clk 0:02:59.6]} 6... dxc4 {[%clk 0:02:04]}
7. Qxd8+ {[%clk 0:02:56.6]} 7... Kxd8 {[%clk 0:02:04.1]} 8. O-O {[%clk
0:02:58.5]} 8... Be6 {[%clk 0:02:01.3]} 9. Ng5 {[%clk 0:02:56.5]} 9... Nbd7
{[%clk 0:01:58.2]} 10. Nd2 {[%clk 0:02:43.9]} 10... Nb6 {[%clk 0:01:55.4]} 11.
Nxe6+ {[%clk 0:02:38.3]} 11... fxe6 {[%clk 0:01:55.9]} 12. Rd1 {[%clk
0:02:38.2]} 12... Ke8 {[%clk 0:01:51.8]} 13. Nf3 {[%clk 0:02:36.5]} 13... Bc5
{[%clk 0:01:48.4]} 14. Bf4 {[%clk 0:02:29.5]} 14... Ke7 {[%clk 0:01:38.1]} 15.
Rac1 {[%clk 0:02:13.6]} 15... Rad8 {[%clk 0:01:22.7]} 16. Rxd8 {[%clk
0:02:00.8]} 16... Rxd8 {[%clk 0:01:22.4]} 17. Ne5 {[%clk 0:02:02]} 17... Bd4
{[%clk 0:00:54.8]} 18. Nxc4 {[%clk 0:01:51]} 18... Nxc4 {[%clk 0:00:25.5]} 19.
Rxc4 {[%clk 0:01:50.3]} 19... e5 {[%clk 0:00:25.1]} 20. Bg5 {[%clk 0:01:38.7]}
20... h6 {[%clk 0:00:25.6]} 21. Bxf6+ {[%clk 0:01:16]} 21... Kxf6 {[%clk
0:00:25.7]} 22. e3 {[%clk 0:01:17.5]} 22... Bb6 {[%clk 0:00:21.5]} 23. Rc2
{[%clk 0:01:10.8]} 23... Rd1+ {[%clk 0:00:22.4]} 24. Bf1 {[%clk 0:01:11.7]}
24... e4 {[%clk 0:00:21.9]} 25. Kg2 {[%clk 0:01:11.2]} 25... Ke5 {[%clk
0:00:22.6]} 26. Bc4 {[%clk 0:01:08.6]} 26... Ba5 {[%clk 0:00:22]} 27. Bb3 {[%clk
0:00:23.8]} 27... Rd2 {[%clk 0:00:22.3]} 28. Rc5+ {[%clk 0:00:24.6]} 28... Kd6
{[%clk 0:00:18.6]} 29. Rxa5 {[%clk 0:00:25.1]} 29... a6 {[%clk 0:00:20.1]} 30.
Rf5 {[%clk 0:00:24.4]} 30... Rxb2 {[%clk 0:00:20.4]} 31. Rf7 {[%clk 0:00:22.7]}
31... b5 {[%clk 0:00:21.5]} 32. Rxg7 {[%clk 0:00:22.5]} 32... a5 {[%clk
0:00:22.9]} 33. Rg6+ {[%clk 0:00:23]} 33... Kc7 {[%clk 0:00:20.2]} 34. Rxh6
{[%clk 0:00:22.8]} 34... a4 {[%clk 0:00:21]} 35. Bg8 {[%clk 0:00:23.5]} 35... b4
{[%clk 0:00:21.5]} 36. Rh7+ {[%clk 0:00:23.7]} 36... Kb6 {[%clk 0:00:20.9]} 37.
h4 {[%clk 0:00:21.5]} 37... c5 {[%clk 0:00:21.6]} 38. h5 {[%clk 0:00:22.5]}
38... b3 {[%clk 0:00:19.8]} 39. axb3 {[%clk 0:00:23.3]} 39... a3 {[%clk
0:00:21.2]} 40. b4 {[%clk 0:00:24.2]} 40... cxb4 {[%clk 0:00:22.2]} 41. Bd5
{[%clk 0:00:17.3]} 41... a2 {[%clk 0:00:22.5]} 42. Rb7+ {[%clk 0:00:16.5]} 42...
Kc5 {[%clk 0:00:22.7]} 43. Bxa2 {[%clk 0:00:16.7]} 43... Rxa2 {[%clk 0:00:23.7]}
44. h6 {[%clk 0:00:18.4]} 44... Ra6 {[%clk 0:00:24.1]} 45. h7 {[%clk 0:00:18.2]}
45... Rh6 {[%clk 0:00:25]} 46. g4 {[%clk 0:00:19.7]} 46... Kc4 {[%clk
0:00:24.6]} 47. g5 {[%clk 0:00:20.5]} 47... Rh5 {[%clk 0:00:25.6]} 48. g6 {[%clk
0:00:17.8]} 48... b3 {[%clk 0:00:26.2]} 49. Kg3 {[%clk 0:00:11.6]} 49... Kc3
{[%clk 0:00:25.5]} 50. Kg4 {[%clk 0:00:12.2]} 50... Rh2 {[%clk 0:00:25]} 51. Kg5
{[%clk 0:00:10.7]} 51... b2 {[%clk 0:00:26.1]} 52. Kf5 {[%clk 0:00:10.6]} 52...
Rxf2+ {[%clk 0:00:26.6]} 53. Kxe4 {[%clk 0:00:12]} 53... Rh2 {[%clk 0:00:27.3]}
54. Kf5 {[%clk 0:00:13.1]} 54... Rf2+ {[%clk 0:00:28.3]} 55. Ke6 {[%clk
0:00:13.1]} 55... Rh2 {[%clk 0:00:27.9]} 56. Kf7 {[%clk 0:00:13.1]} 56... Kc2
{[%clk 0:00:23.9]} 57. Kg8 {[%clk 0:00:12.5]} 57... b1=Q {[%clk 0:00:24.8]} 58.
Rxb1 {[%clk 0:00:12.3]} 58... Kxb1 {[%clk 0:00:25.9]} 59. g7 {[%clk 0:00:13.9]}
1-0

[Event "*** Titled Tuesday 3|2 Blitz (Early)"]
[Site "Chess.com"]
[Date "2017.01.03"]
[Round "9"]
[White "Iball95"]
[Black "Mischuk_D"]
[Result "1/2-1/2"]
[WhiteElo "2464"]
[BlackElo "2458"]
[TimeControl "180+2"]
[EndTime "12:59:26 PST"]
[Termination "Game drawn - insufficient material"]

1. e4 {[%clk 0:02:59.3]} 1... c5 {[%clk 0:03:00.5]} 2. Nf3 {[%clk 0:03:00.6]}
2... d6 {[%clk 0:02:59.9]} 3. Bb5+ {[%clk 0:03:01.3]} 3... Bd7 {[%clk
0:03:00.2]} 4. Bxd7+ {[%clk 0:03:01.6]} 4... Nxd7 {[%clk 0:03:00.9]} 5. O-O
{[%clk 0:03:02.2]} 5... Ngf6 {[%clk 0:03:01]} 6. Qe2 {[%clk 0:03:03.6]} 6... g6
{[%clk 0:03:01.8]} 7. b3 {[%clk 0:03:03.8]} 7... Bg7 {[%clk 0:03:02.9]} 8. Bb2
{[%clk 0:03:05.4]} 8... O-O {[%clk 0:03:03.9]} 9. c4 {[%clk 0:03:05.4]} 9... a6
{[%clk 0:03:04.6]} 10. d4 {[%clk 0:03:05.9]} 10... cxd4 {[%clk 0:03:04.8]} 11.
Nxd4 {[%clk 0:03:07.8]} 11... Ne5 {[%clk 0:03:01.8]} 12. Nc3 {[%clk 0:03:07.8]}
12... Nc6 {[%clk 0:03:01.9]} 13. Nxc6 {[%clk 0:03:05.3]} 13... bxc6 {[%clk
0:03:02.5]} 14. Rad1 {[%clk 0:03:06.2]} 14... Nd7 {[%clk 0:03:02.8]} 15. f4
{[%clk 0:03:04.4]} 15... Qc7 {[%clk 0:02:59.8]} 16. Kh1 {[%clk 0:03:00.5]} 16...
a5 {[%clk 0:03:01]} 17. Rf3 {[%clk 0:02:49.9]} 17... Nc5 {[%clk 0:02:59.6]} 18.
Rh3 {[%clk 0:02:44]} 18... Rfb8 {[%clk 0:02:59.4]} 19. Qe1 {[%clk 0:02:20.4]}
19... h5 {[%clk 0:02:28.6]} 20. Ba3 {[%clk 0:02:18.9]} 20... a4 {[%clk 0:02:22]}
21. b4 {[%clk 0:02:02.9]} 21... Na6 {[%clk 0:02:17.8]} 22. b5 {[%clk 0:01:41.5]}
22... cxb5 {[%clk 0:01:56.7]} 23. cxb5 {[%clk 0:01:43.4]} 23... Nc5 {[%clk
0:01:57.6]} 24. Nd5 {[%clk 0:01:42.8]} 24... Qb7 {[%clk 0:01:58.4]} 25. f5
{[%clk 0:01:17.4]} 25... e6 {[%clk 0:01:49.7]} 26. fxe6 {[%clk 0:01:16.2]} 26...
fxe6 {[%clk 0:01:50.1]} 27. Nf4 {[%clk 0:01:17.1]} 27... Qxe4 {[%clk 0:01:50.9]}
28. Bxc5 {[%clk 0:01:14]} 28... Qxe1+ {[%clk 0:01:51.6]} 29. Rxe1 {[%clk
0:01:13.2]} 29... dxc5 {[%clk 0:01:52.5]} 30. Nxe6 {[%clk 0:01:13.8]} 30... Rxb5
{[%clk 0:01:48.3]} 31. Nc7 {[%clk 0:01:11.9]} 31... Rab8 {[%clk 0:01:47.8]} 32.
Nxb5 {[%clk 0:01:12.5]} 32... Rxb5 {[%clk 0:01:49.7]} 33. Rd3 {[%clk 0:01:04.4]}
33... Bd4 {[%clk 0:01:49.1]} 34. g3 {[%clk 0:00:56.1]} 34... Rb2 {[%clk
0:01:49.4]} 35. a3 {[%clk 0:00:43.1]} 35... Kf7 {[%clk 0:01:48.6]} 36. Rf3+
{[%clk 0:00:43.1]} 36... Kg7 {[%clk 0:01:49.5]} 37. Re7+ {[%clk 0:00:43.8]}
37... Kh6 {[%clk 0:01:50.4]} 38. h4 {[%clk 0:00:44.8]} 38... Rb1+ {[%clk
0:01:44.6]} 39. Kg2 {[%clk 0:00:45.3]} 39... Rb2+ {[%clk 0:01:45.5]} 40. Kf1
{[%clk 0:00:42.8]} 40... Rb6 {[%clk 0:01:12.6]} 41. Ra7 {[%clk 0:00:35.7]} 41...
g5 {[%clk 0:01:10.6]} 42. Rxa4 {[%clk 0:00:35.9]} 42... gxh4 {[%clk 0:01:11.3]}
43. gxh4 {[%clk 0:00:37.8]} 43... Rc6 {[%clk 0:01:07.7]} 44. Rc4 {[%clk
0:00:34.9]} 44... Kg6 {[%clk 0:01:07.6]} 45. a4 {[%clk 0:00:35.8]} 45... Rb6
{[%clk 0:01:07.7]} 46. Rc2 {[%clk 0:00:28.3]} 46... Rb1+ {[%clk 0:01:05.8]} 47.
Ke2 {[%clk 0:00:28.6]} 47... Ra1 {[%clk 0:01:06.4]} 48. Rc4 {[%clk 0:00:27.2]}
48... Ra2+ {[%clk 0:00:56.4]} 49. Kd3 {[%clk 0:00:28.1]} 49... Ra1 {[%clk
0:00:55.3]} 50. Ke4 {[%clk 0:00:27.8]} 50... Ra2 {[%clk 0:00:56.1]} 51. Kd5
{[%clk 0:00:28]} 51... Ra1 {[%clk 0:00:56.6]} 52. Kc6 {[%clk 0:00:28.8]} 52...
Ra2 {[%clk 0:00:57.5]} 53. Kb6 {[%clk 0:00:28.9]} 53... Rb2+ {[%clk 0:00:58.1]}
54. Ka6 {[%clk 0:00:29.2]} 54... Bf6 {[%clk 0:00:46.1]} 55. Rxc5 {[%clk
0:00:26.7]} 55... Bxh4 {[%clk 0:00:46.8]} 56. Rc6+ {[%clk 0:00:22.1]} 56... Kg5
{[%clk 0:00:47.1]} 57. a5 {[%clk 0:00:20.8]} 57... Be1 {[%clk 0:00:46]} 58. Rf1
{[%clk 0:00:21.2]} 58... Bg3 {[%clk 0:00:42.6]} 59. Rc5+ {[%clk 0:00:21.4]}
59... Kg4 {[%clk 0:00:41.9]} 60. Rb5 {[%clk 0:00:22.6]} 60... Ra2 {[%clk
0:00:40.5]} 61. Rb4+ {[%clk 0:00:22.4]} 61... Kh3 {[%clk 0:00:38]} 62. Kb6
{[%clk 0:00:18.3]} 62... h4 {[%clk 0:00:37.6]} 63. a6 {[%clk 0:00:18.6]} 63...
Kg2 {[%clk 0:00:38.3]} 64. Rfb1 {[%clk 0:00:16.8]} 64... Bf2+ {[%clk 0:00:36.9]}
65. Kb7 {[%clk 0:00:17.1]} 65... h3 {[%clk 0:00:37.7]} 66. R4b2 {[%clk
0:00:17.8]} 66... Rxb2+ {[%clk 0:00:37.8]} 67. Rxb2 {[%clk 0:00:19.7]} 67... h2
{[%clk 0:00:38.8]} 68. Rb1 {[%clk 0:00:19.3]} 68... h1=Q {[%clk 0:00:39.5]} 69.
Rxh1 {[%clk 0:00:19.9]} 69... Kxh1 {[%clk 0:00:40.1]} 70. a7 {[%clk 0:00:21.8]}
70... Bxa7 {[%clk 0:00:40.1]} 1/2-1/2

[Event "*** Titled Tuesday 3|2 Blitz (Early)"]
[Site "Chess.com"]
[Date "2017.01.03"]
[Round "9"]
[White "Corpescador"]
[Black "Firebullet"]
[Result "1/2-1/2"]
[WhiteElo "2426"]
[BlackElo "2283"]
[TimeControl "180+2"]
[EndTime "12:59:30 PST"]
[Termination "Game drawn - insufficient material"]

1. e4 {[%clk 0:03:02]} 1... c5 {[%clk 0:03:00.8]} 2. Nf3 {[%clk 0:02:51.8]} 2...
Nc6 {[%clk 0:03:02.3]} 3. d4 {[%clk 0:02:52.9]} 3... cxd4 {[%clk 0:03:04.2]} 4.
Nxd4 {[%clk 0:02:54.6]} 4... Nf6 {[%clk 0:03:05.9]} 5. Nc3 {[%clk 0:02:55.5]}
5... e5 {[%clk 0:03:07.5]} 6. Ndb5 {[%clk 0:02:56.5]} 6... d6 {[%clk 0:03:09.1]}
7. Bg5 {[%clk 0:02:56.9]} 7... a6 {[%clk 0:03:10.6]} 8. Na3 {[%clk 0:02:57.1]}
8... b5 {[%clk 0:03:12.5]} 9. Bxf6 {[%clk 0:02:57.9]} 9... gxf6 {[%clk
0:03:13.2]} 10. Nd5 {[%clk 0:02:59.1]} 10... Bg7 {[%clk 0:03:14.5]} 11. Bd3
{[%clk 0:02:59.5]} 11... Ne7 {[%clk 0:03:14]} 12. Nxe7 {[%clk 0:03:00.3]} 12...
Qxe7 {[%clk 0:03:14.6]} 13. O-O {[%clk 0:02:56.9]} 13... O-O {[%clk 0:03:01.1]}
14. c3 {[%clk 0:02:42.4]} 14... f5 {[%clk 0:02:46]} 15. exf5 {[%clk 0:02:41.2]}
15... d5 {[%clk 0:02:42.2]} 16. Be2 {[%clk 0:02:35.3]} 16... Bxf5 {[%clk
0:02:42.1]} 17. Qxd5 {[%clk 0:02:31.4]} 17... Be6 {[%clk 0:02:37.8]} 18. Qf3
{[%clk 0:02:18.1]} 18... f5 {[%clk 0:02:37.4]} 19. Nc2 {[%clk 0:02:14]} 19...
Rae8 {[%clk 0:02:31]} 20. Rfe1 {[%clk 0:02:04]} 20... Kh8 {[%clk 0:02:30.5]} 21.
a4 {[%clk 0:02:02.1]} 21... bxa4 {[%clk 0:02:26.2]} 22. Bxa6 {[%clk 0:01:39.2]}
22... e4 {[%clk 0:02:22.1]} 23. Qh5 {[%clk 0:01:17.1]} 23... Rf6 {[%clk
0:02:20]} 24. Bb5 {[%clk 0:00:37.2]} 24... Rg8 {[%clk 0:02:19.3]} 25. g3 {[%clk
0:00:30.1]} 25... Rh6 {[%clk 0:02:14.5]} 26. Qe2 {[%clk 0:00:29.7]} 26... Be5
{[%clk 0:02:10.8]} 27. Ne3 {[%clk 0:00:25.8]} 27... f4 {[%clk 0:02:06.1]} 28.
Nf1 {[%clk 0:00:22.7]} 28... e3 {[%clk 0:02:03]} 29. Rxa4 {[%clk 0:00:15.8]}
29... Qc5 {[%clk 0:01:39.7]} 30. Nxe3 {[%clk 0:00:15.6]} 30... fxe3 {[%clk
0:01:38.2]} 31. Qxe3 {[%clk 0:00:16.8]} 31... Qxb5 {[%clk 0:01:26]} 32. Qxe5+
{[%clk 0:00:17.9]} 32... Qxe5 {[%clk 0:01:20.6]} 33. Rxe5 {[%clk 0:00:19.8]}
33... Rd8 {[%clk 0:01:14.8]} 34. Rae4 {[%clk 0:00:17.6]} 34... Bf7 {[%clk
0:01:08]} 35. Re1 {[%clk 0:00:16.8]} 35... Rb6 {[%clk 0:01:07.7]} 36. b4 {[%clk
0:00:17.1]} 36... Rc8 {[%clk 0:01:09]} 37. R5e3 {[%clk 0:00:14.8]} 37... Kg7
{[%clk 0:01:07.2]} 38. h4 {[%clk 0:00:15]} 38... h5 {[%clk 0:01:07.5]} 39. Rd1
{[%clk 0:00:16.3]} 39... Rc7 {[%clk 0:01:07.8]} 40. Rd4 {[%clk 0:00:16.9]} 40...
Rbc6 {[%clk 0:01:05]} 41. Rde4 {[%clk 0:00:12.6]} 41... Rxc3 {[%clk 0:00:57.6]}
42. Rxc3 {[%clk 0:00:14.5]} 42... Rxc3 {[%clk 0:00:59]} 43. Rd4 {[%clk 0:00:16]}
43... Kf6 {[%clk 0:00:59.3]} 44. Rf4+ {[%clk 0:00:14.8]} 44... Ke7 {[%clk
0:00:54.1]} 45. Kf1 {[%clk 0:00:16.1]} 45... Bd5 {[%clk 0:00:43.6]} 46. Ke1
{[%clk 0:00:16.8]} 46... Rb3 {[%clk 0:00:41.7]} 47. Kd2 {[%clk 0:00:17.7]} 47...
Ke6 {[%clk 0:00:42.5]} 48. Kc2 {[%clk 0:00:16.8]} 48... Rf3 {[%clk 0:00:36.1]}
49. Rxf3 {[%clk 0:00:17.1]} 49... Bxf3 {[%clk 0:00:38]} 50. Kd3 {[%clk
0:00:18.4]} 50... Kf5 {[%clk 0:00:38.8]} 51. b5 {[%clk 0:00:16.7]} 51... Bb7
{[%clk 0:00:32]} 52. Ke3 {[%clk 0:00:17.7]} 52... Kg4 {[%clk 0:00:32]} 53. Ke2
{[%clk 0:00:18.4]} 53... Kh3 {[%clk 0:00:32.5]} 54. Ke3 {[%clk 0:00:19.8]} 54...
Kg4 {[%clk 0:00:30.8]} 55. Ke2 {[%clk 0:00:19.4]} 55... Kh3 {[%clk 0:00:31.6]}
56. Ke1 {[%clk 0:00:19.4]} 56... Kg4 {[%clk 0:00:29.5]} 57. Ke2 {[%clk
0:00:19.6]} 57... Bg2 {[%clk 0:00:30.5]} 58. b6 {[%clk 0:00:20.6]} 58... Bb7
{[%clk 0:00:31.5]} 59. Ke3 {[%clk 0:00:21.4]} 59... Ba8 {[%clk 0:00:31.3]} 60.
Kd4 {[%clk 0:00:20.7]} 60... Kf3 {[%clk 0:00:31.8]} 61. Ke5 {[%clk 0:00:21.3]}
61... Kxf2 {[%clk 0:00:32.9]} 62. Kf4 {[%clk 0:00:23.2]} 62... Bf3 {[%clk
0:00:31.2]} 63. Kg5 {[%clk 0:00:15.4]} 63... Kxg3 {[%clk 0:00:31.5]} 64. b7
{[%clk 0:00:15.7]} 64... Bxb7 {[%clk 0:00:32.1]} 65. Kxh5 {[%clk 0:00:17.6]}
65... Bf3+ {[%clk 0:00:33.4]} 66. Kg5 {[%clk 0:00:18.8]} 66... Bd1 {[%clk
0:00:35.1]} 67. h5 {[%clk 0:00:20]} 67... Be2 {[%clk 0:00:36.3]} 68. h6 {[%clk
0:00:21.2]} 68... Bd3 {[%clk 0:00:37.5]} 69. Kf6 {[%clk 0:00:23.1]} 69... Kg4
{[%clk 0:00:38.7]} 70. Kg7 {[%clk 0:00:25]} 70... Kg5 {[%clk 0:00:40.1]} 71. h7
{[%clk 0:00:26.9]} 71... Bxh7 {[%clk 0:00:40.5]} 1/2-1/2

[Event "*** Titled Tuesday 3|2 Blitz (Early)"]
[Site "Chess.com"]
[Date "2017.01.03"]
[Round "9"]
[White "aspired"]
[Black "rubhani"]
[Result "1-0"]
[WhiteElo "2436"]
[BlackElo "2414"]
[TimeControl "180+2"]
[EndTime "12:59:46 PST"]
[Termination "aspired won by resignation"]

1. e4 {[%clk 0:03:02]} 1... c5 {[%clk 0:02:59.3]} 2. Ne2 {[%clk 0:03:02]} 2...
d6 {[%clk 0:02:59.2]} 3. c3 {[%clk 0:03:01.6]} 3... Nf6 {[%clk 0:02:59.4]} 4. g3
{[%clk 0:03:02.1]} 4... Bd7 {[%clk 0:02:58.4]} 5. Bg2 {[%clk 0:03:00.2]} 5...
Bc6 {[%clk 0:02:59.9]} 6. Qc2 {[%clk 0:02:52.6]} 6... Nbd7 {[%clk 0:02:54.5]} 7.
O-O {[%clk 0:02:52.8]} 7... e6 {[%clk 0:02:54.3]} 8. d4 {[%clk 0:02:51.6]} 8...
cxd4 {[%clk 0:02:49.1]} 9. Nxd4 {[%clk 0:02:53.5]} 9... Be7 {[%clk 0:02:45.7]}
10. Nxc6 {[%clk 0:02:46]} 10... bxc6 {[%clk 0:02:46.3]} 11. c4 {[%clk
0:02:46.8]} 11... O-O {[%clk 0:02:44.4]} 12. Nc3 {[%clk 0:02:47.9]} 12... Qc7
{[%clk 0:02:44.5]} 13. Rd1 {[%clk 0:02:48.1]} 13... a5 {[%clk 0:02:43.8]} 14. h3
{[%clk 0:02:45.8]} 14... e5 {[%clk 0:02:44.6]} 15. Be3 {[%clk 0:02:44.3]} 15...
Nc5 {[%clk 0:02:43.9]} 16. Bxc5 {[%clk 0:02:44.4]} 16... dxc5 {[%clk 0:02:44.9]}
17. Ne2 {[%clk 0:02:40.4]} 17... Rfd8 {[%clk 0:02:44.1]} 18. Rxd8+ {[%clk
0:02:40.4]} 18... Rxd8 {[%clk 0:02:44.2]} 19. Rd1 {[%clk 0:02:40.9]} 19... Nd7
{[%clk 0:02:44.6]} 20. h4 {[%clk 0:02:36.7]} 20... Nf8 {[%clk 0:02:30.6]} 21.
Rxd8 {[%clk 0:02:36.4]} 21... Qxd8 {[%clk 0:02:30.9]} 22. Bh3 {[%clk 0:02:38.3]}
22... h5 {[%clk 0:02:10.5]} 23. Kg2 {[%clk 0:02:18.8]} 23... g5 {[%clk
0:01:49.3]} 24. hxg5 {[%clk 0:02:16.4]} 24... Bxg5 {[%clk 0:01:51.2]} 25. Qc3
{[%clk 0:02:09.2]} 25... Ng6 {[%clk 0:01:45]} 26. Bf5 {[%clk 0:02:01.6]} 26...
Bd2 {[%clk 0:01:45]} 27. Qf3 {[%clk 0:01:53.2]} 27... Qg5 {[%clk 0:01:22.8]} 28.
Bxg6 {[%clk 0:01:50.9]} 28... Qxg6 {[%clk 0:01:23.6]} 29. Qf5 {[%clk 0:01:40.1]}
29... Qxf5 {[%clk 0:01:13.6]} 30. exf5 {[%clk 0:01:42]} 30... e4 {[%clk
0:01:15]} 31. f3 {[%clk 0:01:08]} 31... e3 {[%clk 0:01:14.2]} 32. g4 {[%clk
0:01:04.8]} 32... h4 {[%clk 0:01:08.5]} 33. g5 {[%clk 0:00:55.5]} 33... Kf8
{[%clk 0:01:00]} 34. f4 {[%clk 0:00:53]} 34... Be1 {[%clk 0:00:49.9]} 35. Ng1
{[%clk 0:00:45.2]} 35... Bf2 {[%clk 0:00:46]} 36. Nh3 {[%clk 0:00:45]} 36... Be1
{[%clk 0:00:40.7]} 37. Kf3 {[%clk 0:00:45.4]} 37... Bd2 {[%clk 0:00:41.7]} 38.
b3 {[%clk 0:00:44.7]} 38... Ke7 {[%clk 0:00:41.3]} 39. Ke2 {[%clk 0:00:39.6]}
39... Kd6 {[%clk 0:00:41.3]} 40. Ng1 {[%clk 0:00:32.4]} 40... Ke7 {[%clk
0:00:40.7]} 41. Kf3 {[%clk 0:00:30.7]} 41... Kf8 {[%clk 0:00:21.3]} 42. Nh3
{[%clk 0:00:15.9]} 42... Kg7 {[%clk 0:00:21.9]} 43. Ke2 {[%clk 0:00:15.9]} 43...
f6 {[%clk 0:00:22.4]} 44. Kf3 {[%clk 0:00:15]} 44... Bc1 {[%clk 0:00:21.1]} 45.
g6 {[%clk 0:00:14.1]} 45... Bd2 {[%clk 0:00:21.8]} 46. Ke2 {[%clk 0:00:14.6]}
46... Kh6 {[%clk 0:00:22.6]} 47. Ng1 {[%clk 0:00:15.2]} 47... Kg7 {[%clk
0:00:23.4]} 48. Kf3 {[%clk 0:00:15.7]} 48... Kh6 {[%clk 0:00:20.8]} 49. Ne2
{[%clk 0:00:13.7]} 49... Kg7 {[%clk 0:00:17.7]} 50. Ng1 {[%clk 0:00:13.6]} 50...
Kh6 {[%clk 0:00:18.2]} 51. Kg4 {[%clk 0:00:14.9]} 51... Be1 {[%clk 0:00:18.6]}
52. Kf3 {[%clk 0:00:14.6]} 52... Bf2 {[%clk 0:00:19.2]} 53. Nh3 {[%clk
0:00:15.5]} 53... Be1 {[%clk 0:00:10.2]} 54. Kxe3 {[%clk 0:00:16.3]} 54... Bc3
{[%clk 0:00:11.3]} 55. Kf3 {[%clk 0:00:17.7]} 55... Be1 {[%clk 0:00:12.3]} 56.
Kg4 {[%clk 0:00:19]} 56... Kg7 {[%clk 0:00:12.8]} 57. Ng1 {[%clk 0:00:18.9]}
57... Kh6 {[%clk 0:00:13.5]} 58. Nf3 {[%clk 0:00:19.8]} 58... Bc3 {[%clk
0:00:10.5]} 59. Nxh4 {[%clk 0:00:20.2]} 59... Kg7 {[%clk 0:00:12.4]} 60. Ng2
{[%clk 0:00:21.2]} 60... Bb2 {[%clk 0:00:14.3]} 61. Ne1 {[%clk 0:00:21.8]} 61...
Bd4 {[%clk 0:00:15.2]} 62. Nd3 {[%clk 0:00:22.8]} 62... Bg1 {[%clk 0:00:16.2]}
63. Kf3 {[%clk 0:00:24]} 63... Bd4 {[%clk 0:00:18.1]} 64. Ke4 {[%clk 0:00:25.2]}
64... Bg1 {[%clk 0:00:19.3]} 65. Nb2 {[%clk 0:00:25.9]} 65... Bd4 {[%clk
0:00:19.5]} 66. Na4 {[%clk 0:00:27.8]} 66... Kf8 {[%clk 0:00:20.6]} 67. Nb6
{[%clk 0:00:28.6]} 67... Kg7 {[%clk 0:00:21.4]} 68. Nd7 {[%clk 0:00:29.8]} 68...
Bg1 {[%clk 0:00:22.4]} 69. Nb8 {[%clk 0:00:31.3]} 1-0